[Event "*** SCC Grand Prix: Titled Tuesday Blitz"]
[Site "Chess.com"]
[Date "2020.07.14"]
[Round "8"]
[White "MacDaddyMac"]
[Black "MashaFromRussia"]
[Result "1-0"]
[WhiteElo "2321"]
[BlackElo "2415"]
[TimeControl "180+1"]
[EndTime "11:37:02 PDT"]
[Termination "MacDaddyMac won by resignation"]

1. e4 {[%clk 0:02:55.6]} 1... c5 {[%clk 0:02:59.6]} 2. Nc3 {[%clk 0:02:54.6]}
2... Nc6 {[%clk 0:02:59.6]} 3. f4 {[%clk 0:02:55.5]} 3... g6 {[%clk 0:02:58.5]}
4. Nf3 {[%clk 0:02:56.4]} 4... Bg7 {[%clk 0:02:58.7]} 5. Bb5 {[%clk 0:02:57.3]}
5... e6 {[%clk 0:02:57.6]} 6. Bxc6 {[%clk 0:02:57.1]} 6... bxc6 {[%clk
0:02:57.6]} 7. e5 {[%clk 0:02:57.4]} 7... d5 {[%clk 0:02:50.7]} 8. exd6 {[%clk
0:02:57.6]} 8... Qxd6 {[%clk 0:02:50]} 9. d3 {[%clk 0:02:58.2]} 9... Nf6 {[%clk
0:02:41.4]} 10. O-O {[%clk 0:02:54.4]} 10... O-O {[%clk 0:02:40.8]} 11. Ne4
{[%clk 0:02:54.4]} 11... Nxe4 {[%clk 0:02:39.9]} 12. dxe4 {[%clk 0:02:55.3]}
12... Rd8 {[%clk 0:02:37.1]} 13. Qxd6 {[%clk 0:02:51]} 13... Rxd6 {[%clk
0:02:36.4]} 14. e5 {[%clk 0:02:46.1]} 14... Rd7 {[%clk 0:02:29]} 15. c4 {[%clk
0:02:43]} 15... Ba6 {[%clk 0:02:23.5]} 16. b3 {[%clk 0:02:43]} 16... Rd3 {[%clk
0:02:20.9]} 17. Ba3 {[%clk 0:02:42.6]} 17... Bf8 {[%clk 0:02:19.4]} 18. Rad1
{[%clk 0:02:41.9]} 18... Rad8 {[%clk 0:02:18.8]} 19. Rxd3 {[%clk 0:02:41.9]}
19... Rxd3 {[%clk 0:02:18.4]} 20. Kf2 {[%clk 0:02:41.6]} 20... h6 {[%clk
0:01:48.6]} 21. Rc1 {[%clk 0:02:36.7]} 21... g5 {[%clk 0:01:38.5]} 22. Ke2
{[%clk 0:02:29.8]} 22... Rd7 {[%clk 0:01:32.1]} 23. fxg5 {[%clk 0:02:26.4]}
23... hxg5 {[%clk 0:01:31.9]} 24. g4 {[%clk 0:02:08.4]} 24... Kg7 {[%clk
0:01:04.1]} 25. Nxg5 {[%clk 0:01:53.8]} 25... Kg6 {[%clk 0:00:48.2]} 26. Nf3
{[%clk 0:01:53.2]} 26... Bc8 {[%clk 0:00:28.6]} 27. h4 {[%clk 0:01:38.9]} 27...
f6 {[%clk 0:00:25.5]} 28. exf6 {[%clk 0:01:27.8]} 28... Kxf6 {[%clk 0:00:26.4]}
29. Bb2+ {[%clk 0:01:27.8]} 29... Ke7 {[%clk 0:00:26.6]} 30. Ne5 {[%clk
0:01:21.2]} 30... Rd6 {[%clk 0:00:26]} 31. Ng6+ {[%clk 0:01:07.2]} 31... Ke8
{[%clk 0:00:25.6]} 32. Nxf8 {[%clk 0:00:56.3]} 32... Kxf8 {[%clk 0:00:25.4]} 33.
Ba3 {[%clk 0:00:56.9]} 33... Kg7 {[%clk 0:00:20.4]} 34. Bxc5 {[%clk 0:00:55.9]}
34... Rd8 {[%clk 0:00:20.8]} 35. Bxa7 {[%clk 0:00:51.9]} 35... e5 {[%clk
0:00:20.8]} 36. Ke3 {[%clk 0:00:37.5]} 36... Kg6 {[%clk 0:00:17.4]} 37. Rg1
{[%clk 0:00:30.3]} 37... Be6 {[%clk 0:00:13.3]} 38. Ke4 {[%clk 0:00:26]} 38...
Ra8 {[%clk 0:00:11.5]} 39. h5+ {[%clk 0:00:25.5]} 39... Kg5 {[%clk 0:00:11.2]}
40. Be3+ {[%clk 0:00:24.8]} 40... Kh4 {[%clk 0:00:11]} 41. Kxe5 {[%clk
0:00:09.3]} 41... Bxg4 {[%clk 0:00:10.8]} 42. h6 {[%clk 0:00:05.6]} 42... Be2
{[%clk 0:00:04]} 43. h7 {[%clk 0:00:02.8]} 43... Bd3 {[%clk 0:00:03.9]} 44.
h8=Q+ {[%clk 0:00:01.1]} 44... Rxh8 {[%clk 0:00:03.7]} 45. Rh1+ {[%clk 0:00:02]}
45... Kg3 {[%clk 0:00:04.1]} 46. Rxh8 {[%clk 0:00:02.9]} 46... Bb1 {[%clk
0:00:04.7]} 47. Bd4 {[%clk 0:00:03.3]} 47... Bxa2 {[%clk 0:00:04.8]} 48. Rb8
{[%clk 0:00:03]} 48... Bxb3 {[%clk 0:00:05.7]} 49. Rxb3+ {[%clk 0:00:02.7]} 1-0

[Event "*** SCC Grand Prix: Titled Tuesday Blitz"]
[Site "Chess.com"]
[Date "2020.07.14"]
[Round "8"]
[White "K-Nygren"]
[Black "AlexOstrovskiy"]
[Result "1-0"]
[WhiteElo "2489"]
[BlackElo "2609"]
[TimeControl "180+1"]
[EndTime "11:37:04 PDT"]
[Termination "K-Nygren won by resignation"]

1. e4 {[%clk 0:03:00]} 1... c6 {[%clk 0:02:59.9]} 2. d4 {[%clk 0:02:59.5]} 2...
d5 {[%clk 0:03:00.8]} 3. e5 {[%clk 0:02:59.6]} 3... c5 {[%clk 0:03:01]} 4. dxc5
{[%clk 0:02:59.1]} 4... Nc6 {[%clk 0:02:59.3]} 5. Bf4 {[%clk 0:02:57.6]} 5... e6
{[%clk 0:02:57.1]} 6. Nf3 {[%clk 0:02:57.4]} 6... Bxc5 {[%clk 0:02:57]} 7. Be2
{[%clk 0:02:57.4]} 7... f6 {[%clk 0:02:55.5]} 8. O-O {[%clk 0:02:54.7]} 8... g5
{[%clk 0:02:50.4]} 9. Bg3 {[%clk 0:02:44.1]} 9... g4 {[%clk 0:02:49.7]} 10. Nh4
{[%clk 0:02:36.5]} 10... fxe5 {[%clk 0:02:45.3]} 11. Bxg4 {[%clk 0:02:35.5]}
11... Nf6 {[%clk 0:02:45]} 12. Bh5+ {[%clk 0:02:33.4]} 12... Ke7 {[%clk
0:02:21.9]} 13. Kh1 {[%clk 0:02:31.5]} 13... e4 {[%clk 0:02:04.5]} 14. Nc3
{[%clk 0:02:24.1]} 14... a6 {[%clk 0:01:54.8]} 15. f4 {[%clk 0:02:04.1]} 15...
Rg8 {[%clk 0:01:41.7]} 16. f5 {[%clk 0:01:54.6]} 16... e5 {[%clk 0:01:39.1]} 17.
Ng6+ {[%clk 0:01:43.8]} 17... hxg6 {[%clk 0:01:32.4]} 18. fxg6 {[%clk
0:01:43.6]} 18... Ke6 {[%clk 0:01:10.7]} 19. Rxf6+ {[%clk 0:01:32.4]} 19... Kxf6
{[%clk 0:00:39.1]} 20. Bh4+ {[%clk 0:01:31.3]} 20... Kg7 {[%clk 0:00:39.6]} 21.
Bxd8 {[%clk 0:01:30.5]} 21... Rxd8 {[%clk 0:00:40.5]} 22. Qe1 {[%clk 0:01:13.1]}
22... Be6 {[%clk 0:00:33.5]} 23. Rd1 {[%clk 0:01:11.6]} 23... Nd4 {[%clk
0:00:26.2]} 24. Ne2 {[%clk 0:01:06.6]} 24... Nf5 {[%clk 0:00:21.3]} 25. Nf4
{[%clk 0:00:53.7]} 25... Bg8 {[%clk 0:00:15.6]} 26. Qc3 {[%clk 0:00:45.5]} 26...
Bd4 {[%clk 0:00:09.6]} 27. Rxd4 {[%clk 0:00:42.9]} 27... exd4 {[%clk 0:00:07.8]}
28. Qc7+ {[%clk 0:00:42.3]} 28... Kf6 {[%clk 0:00:05.6]} 29. g4 {[%clk
0:00:33.8]} 29... Rac8 {[%clk 0:00:04.2]} 30. Qb6+ {[%clk 0:00:24]} 30... Ke5
{[%clk 0:00:04.5]} 31. gxf5 {[%clk 0:00:16.5]} 31... Kxf4 {[%clk 0:00:04.5]} 32.
f6 {[%clk 0:00:14.3]} 32... d3 {[%clk 0:00:04.8]} 33. cxd3 {[%clk 0:00:13.9]}
33... exd3 {[%clk 0:00:05.7]} 34. Qf2+ {[%clk 0:00:13.7]} 34... Kg5 {[%clk
0:00:06]} 35. Bd1 {[%clk 0:00:11.5]} 35... Kxg6 {[%clk 0:00:05.2]} 36. h4 {[%clk
0:00:10.6]} 36... Kf7 {[%clk 0:00:05.5]} 37. Bh5+ {[%clk 0:00:09.8]} 37... Kf8
{[%clk 0:00:01.9]} 38. f7 {[%clk 0:00:09.9]} 38... Bh7 {[%clk 0:00:01.4]} 39.
Qe3 {[%clk 0:00:09.9]} 39... Rc2 {[%clk 0:00:01.4]} 40. Qh6+ {[%clk 0:00:09.3]}
40... Ke7 {[%clk 0:00:02.3]} 41. Qg5+ {[%clk 0:00:09.1]} 41... Kd7 {[%clk
0:00:01.8]} 42. Qxd8+ {[%clk 0:00:08.4]} 42... Kxd8 {[%clk 0:00:01.9]} 43. f8=Q+
{[%clk 0:00:08.7]} 43... Kc7 {[%clk 0:00:02.8]} 44. Qg7+ {[%clk 0:00:08.6]}
44... Kd6 {[%clk 0:00:03.7]} 45. Qxh7 {[%clk 0:00:08.8]} 45... Rc1+ {[%clk
0:00:03.6]} 46. Kg2 {[%clk 0:00:08.4]} 46... d2 {[%clk 0:00:04.5]} 47. Be2
{[%clk 0:00:07.6]} 1-0

[Event "*** SCC Grand Prix: Titled Tuesday Blitz"]
[Site "Chess.com"]
[Date "2020.07.14"]
[Round "8"]
[White "UCantHandleDenker"]
[Black "Maxim_e2e4"]
[Result "1-0"]
[WhiteElo "2539"]
[BlackElo "2408"]
[TimeControl "180+1"]
[EndTime "11:37:05 PDT"]
[Termination "UCantHandleDenker won on time"]

1. Nf3 {[%clk 0:02:57]} 1... c5 {[%clk 0:02:58.5]} 2. g3 {[%clk 0:02:55.5]} 2...
Nc6 {[%clk 0:02:57.6]} 3. Bg2 {[%clk 0:02:55]} 3... g6 {[%clk 0:02:57.4]} 4. O-O
{[%clk 0:02:54.5]} 4... Bg7 {[%clk 0:02:56.6]} 5. d3 {[%clk 0:02:55.4]} 5... e5
{[%clk 0:02:55.4]} 6. e4 {[%clk 0:02:54.8]} 6... Nge7 {[%clk 0:02:54.9]} 7. c3
{[%clk 0:02:54.5]} 7... d6 {[%clk 0:02:53.4]} 8. a3 {[%clk 0:02:54.1]} 8... O-O
{[%clk 0:02:51.6]} 9. b4 {[%clk 0:02:53.6]} 9... a6 {[%clk 0:02:51.5]} 10. Nbd2
{[%clk 0:02:53]} 10... h6 {[%clk 0:02:48.8]} 11. Rb1 {[%clk 0:02:46.6]} 11... b6
{[%clk 0:02:38.6]} 12. Nc4 {[%clk 0:02:43.4]} 12... b5 {[%clk 0:02:34.1]} 13.
Ne3 {[%clk 0:02:42]} 13... Be6 {[%clk 0:02:33.3]} 14. Re1 {[%clk 0:02:37.6]}
14... f5 {[%clk 0:02:16.3]} 15. exf5 {[%clk 0:02:35.4]} 15... gxf5 {[%clk
0:02:14.9]} 16. Nh4 {[%clk 0:02:34.9]} 16... f4 {[%clk 0:02:03.4]} 17. Nc2
{[%clk 0:02:30.6]} 17... Rc8 {[%clk 0:01:53]} 18. Bxf4 {[%clk 0:01:36.7]} 18...
Ba2 {[%clk 0:01:38]} 19. Ra1 {[%clk 0:01:27.5]} 19... Bd5 {[%clk 0:01:16.4]} 20.
Bd2 {[%clk 0:01:20.6]} 20... Bxg2 {[%clk 0:01:13.8]} 21. Kxg2 {[%clk 0:01:20.4]}
21... Qd7 {[%clk 0:01:09.4]} 22. Qh5 {[%clk 0:01:18]} 22... Nf5 {[%clk
0:01:06.7]} 23. Ne3 {[%clk 0:01:10.9]} 23... Nxh4+ {[%clk 0:01:04.3]} 24. Qxh4
{[%clk 0:01:10.8]} 24... Qf7 {[%clk 0:00:54.1]} 25. Rf1 {[%clk 0:00:59]} 25...
Qf3+ {[%clk 0:00:52.6]} 26. Kg1 {[%clk 0:00:58.8]} 26... Rf7 {[%clk 0:00:45.2]}
27. Qe4 {[%clk 0:00:56.9]} 27... Ne7 {[%clk 0:00:37.2]} 28. Qxf3 {[%clk
0:00:53.5]} 28... Rxf3 {[%clk 0:00:38.1]} 29. Kg2 {[%clk 0:00:52.7]} 29... Rcf8
{[%clk 0:00:32.6]} 30. Rad1 {[%clk 0:00:46.3]} 30... h5 {[%clk 0:00:32.1]} 31.
h4 {[%clk 0:00:44.1]} 31... Ng6 {[%clk 0:00:24.1]} 32. Bc1 {[%clk 0:00:38.5]}
32... R3f7 {[%clk 0:00:15.9]} 33. Nd5 {[%clk 0:00:37.6]} 33... Kh7 {[%clk
0:00:15.3]} 34. Bg5 {[%clk 0:00:36.9]} 34... Bh6 {[%clk 0:00:14.8]} 35. Bxh6
{[%clk 0:00:36]} 35... Kxh6 {[%clk 0:00:15.7]} 36. Ra1 {[%clk 0:00:33.8]} 36...
Rc8 {[%clk 0:00:14.6]} 37. a4 {[%clk 0:00:28.5]} 37... bxa4 {[%clk 0:00:14.2]}
38. Rxa4 {[%clk 0:00:27.8]} 38... cxb4 {[%clk 0:00:14.8]} 39. cxb4 {[%clk
0:00:28.7]} 39... Rc2 {[%clk 0:00:14.3]} 40. Rxa6 {[%clk 0:00:24.3]} 40... Rd2
{[%clk 0:00:11.3]} 41. Ne3 {[%clk 0:00:13.9]} 41... Rxd3 {[%clk 0:00:10.5]} 42.
Rd1 {[%clk 0:00:14.1]} 42... Rxd1 {[%clk 0:00:08.5]} 43. Nxd1 {[%clk 0:00:14.4]}
43... Rd7 {[%clk 0:00:08.2]} 44. Ne3 {[%clk 0:00:14.6]} 44... Ne7 {[%clk
0:00:07.2]} 45. b5 {[%clk 0:00:12.9]} 45... Kg6 {[%clk 0:00:04.1]} 46. Nc4
{[%clk 0:00:12.8]} 46... Nf5 {[%clk 0:00:03.7]} 47. Rc6 {[%clk 0:00:11.3]} 47...
Kf7 {[%clk 0:00:02.9]} 48. b6 {[%clk 0:00:10.9]} 1-0

[Event "*** SCC Grand Prix: Titled Tuesday Blitz"]
[Site "Chess.com"]
[Date "2020.07.14"]
[Round "8"]
[White "JuliaEfremova"]
[Black "Zq1"]
[Result "0-1"]
[WhiteElo "2314"]
[BlackElo "2483"]
[TimeControl "180+1"]
[EndTime "11:37:07 PDT"]
[Termination "Zq1 won by checkmate"]

1. d4 {[%clk 0:03:00.9]} 1... Nf6 {[%clk 0:02:59.4]} 2. Bf4 {[%clk 0:02:59.5]}
2... c5 {[%clk 0:02:58]} 3. e3 {[%clk 0:02:59.5]} 3... g6 {[%clk 0:02:56.9]} 4.
Nf3 {[%clk 0:02:58.7]} 4... Bg7 {[%clk 0:02:56.9]} 5. c3 {[%clk 0:02:56.6]} 5...
b6 {[%clk 0:02:55.7]} 6. Be2 {[%clk 0:02:55.6]} 6... Bb7 {[%clk 0:02:55.9]} 7.
O-O {[%clk 0:02:54.5]} 7... O-O {[%clk 0:02:55]} 8. h3 {[%clk 0:02:54.5]} 8...
d6 {[%clk 0:02:54.5]} 9. Bh2 {[%clk 0:02:51]} 9... Nbd7 {[%clk 0:02:53.5]} 10.
Nbd2 {[%clk 0:02:50.3]} 10... a6 {[%clk 0:02:53]} 11. a4 {[%clk 0:02:42.5]}
11... Ra7 {[%clk 0:02:52.4]} 12. Nc4 {[%clk 0:02:39.3]} 12... Qa8 {[%clk
0:02:50.7]} 13. a5 {[%clk 0:02:31.6]} 13... b5 {[%clk 0:02:37.3]} 14. Nb6 {[%clk
0:02:29.6]} 14... Qd8 {[%clk 0:02:32.4]} 15. Nxd7 {[%clk 0:02:28.6]} 15... Nxd7
{[%clk 0:02:28.7]} 16. b4 {[%clk 0:02:16.1]} 16... cxb4 {[%clk 0:02:08.4]} 17.
cxb4 {[%clk 0:02:12.8]} 17... Nf6 {[%clk 0:02:08.2]} 18. Rc1 {[%clk 0:02:07.3]}
18... Bd5 {[%clk 0:01:59]} 19. Nd2 {[%clk 0:02:00.2]} 19... Qa8 {[%clk
0:01:56.6]} 20. Bf3 {[%clk 0:01:58.8]} 20... Rc8 {[%clk 0:01:48.5]} 21. Bxd5
{[%clk 0:01:47.6]} 21... Nxd5 {[%clk 0:01:35.6]} 22. Qb3 {[%clk 0:01:26.4]}
22... Rac7 {[%clk 0:01:30.1]} 23. Rxc7 {[%clk 0:01:21.2]} 23... Rxc7 {[%clk
0:01:29.8]} 24. Ne4 {[%clk 0:00:50.8]} 24... Nf4 {[%clk 0:01:26.2]} 25. Bxf4
{[%clk 0:00:47.3]} 25... Qxe4 {[%clk 0:01:24.8]} 26. f3 {[%clk 0:00:40.5]} 26...
Qc6 {[%clk 0:01:19.6]} 27. d5 {[%clk 0:00:33]} 27... Qc4 {[%clk 0:01:14.2]} 28.
Rb1 {[%clk 0:00:31.1]} 28... Qxb3 {[%clk 0:01:07.3]} 29. Rxb3 {[%clk 0:00:30.6]}
29... Rc4 {[%clk 0:01:07.2]} 30. e4 {[%clk 0:00:20.6]} 30... Bc3 {[%clk
0:01:05.3]} 31. Bg5 {[%clk 0:00:19.6]} 31... f6 {[%clk 0:01:03.9]} 32. Be3
{[%clk 0:00:17.3]} 32... Bxb4 {[%clk 0:01:00.4]} 33. Bb6 {[%clk 0:00:16.4]}
33... Kf7 {[%clk 0:00:55.1]} 34. Kf1 {[%clk 0:00:16]} 34... Ke8 {[%clk
0:00:51.3]} 35. Ke2 {[%clk 0:00:16.2]} 35... Kd7 {[%clk 0:00:50.9]} 36. Kd3
{[%clk 0:00:16.6]} 36... Bc5 {[%clk 0:00:46.2]} 37. g4 {[%clk 0:00:15.9]} 37...
Bxb6 {[%clk 0:00:39.8]} 38. axb6 {[%clk 0:00:16.8]} 38... Kc8 {[%clk 0:00:40]}
39. f4 {[%clk 0:00:14.5]} 39... Kb7 {[%clk 0:00:38.9]} 40. e5 {[%clk 0:00:15.4]}
40... fxe5 {[%clk 0:00:35.7]} 41. fxe5 {[%clk 0:00:16.3]} 41... dxe5 {[%clk
0:00:34.4]} 42. Rb1 {[%clk 0:00:16.7]} 42... Kxb6 {[%clk 0:00:32.8]} 43. Rf1
{[%clk 0:00:16.6]} 43... Rf4 {[%clk 0:00:30.2]} 44. Re1 {[%clk 0:00:17]} 44...
Rd4+ {[%clk 0:00:30.1]} 45. Kc3 {[%clk 0:00:16.9]} 45... Rxd5 {[%clk 0:00:30]}
46. h4 {[%clk 0:00:16.1]} 46... a5 {[%clk 0:00:29.5]} 47. h5 {[%clk 0:00:16.3]}
47... b4+ {[%clk 0:00:29]} 48. Kb3 {[%clk 0:00:15.4]} 48... Kb5 {[%clk
0:00:27.8]} 49. hxg6 {[%clk 0:00:14.5]} 49... hxg6 {[%clk 0:00:28]} 50. Rh1
{[%clk 0:00:15.4]} 50... a4+ {[%clk 0:00:27.6]} 51. Kc2 {[%clk 0:00:15.7]} 51...
b3+ {[%clk 0:00:27]} 52. Kb1 {[%clk 0:00:15.2]} 52... Kb4 {[%clk 0:00:25.4]} 53.
g5 {[%clk 0:00:14.8]} 53... e4 {[%clk 0:00:22.4]} 54. Rc1 {[%clk 0:00:13.6]}
54... a3 {[%clk 0:00:21.6]} 55. Re1 {[%clk 0:00:13.2]} 55... Rd4 {[%clk
0:00:21.2]} 56. Kc1 {[%clk 0:00:12]} 56... a2 {[%clk 0:00:19.2]} 57. Kb2 {[%clk
0:00:11.7]} 57... Rd2+ {[%clk 0:00:19.1]} 58. Ka1 {[%clk 0:00:12.2]} 58... Ka3
{[%clk 0:00:18.9]} 59. Rd1 {[%clk 0:00:04.1]} 59... b2# {[%clk 0:00:18.4]} 0-1

[Event "*** SCC Grand Prix: Titled Tuesday Blitz"]
[Site "Chess.com"]
[Date "2020.07.14"]
[Round "8"]
[White "BillieKimbah"]
[Black "FabianoCaruana"]
[Result "0-1"]
[WhiteElo "2902"]
[BlackElo "3031"]
[TimeControl "180+1"]
[EndTime "11:37:10 PDT"]
[Termination "FabianoCaruana won by resignation"]

1. d4 {[%clk 0:03:00.9]} 1... Nf6 {[%clk 0:02:59]} 2. Nf3 {[%clk 0:03:01.2]}
2... d5 {[%clk 0:02:58.8]} 3. Bf4 {[%clk 0:03:01.3]} 3... e6 {[%clk 0:02:53.7]}
4. e3 {[%clk 0:03:01.1]} 4... c5 {[%clk 0:02:53.9]} 5. Nbd2 {[%clk 0:02:58.3]}
5... Nc6 {[%clk 0:02:53.9]} 6. c3 {[%clk 0:02:55.2]} 6... Bd6 {[%clk 0:02:54]}
7. Bg3 {[%clk 0:02:50.8]} 7... O-O {[%clk 0:02:51.9]} 8. Bd3 {[%clk 0:02:50.7]}
8... b6 {[%clk 0:02:52]} 9. Qe2 {[%clk 0:02:48.9]} 9... Bb7 {[%clk 0:02:52.1]}
10. e4 {[%clk 0:02:46.3]} 10... Be7 {[%clk 0:02:48.2]} 11. e5 {[%clk 0:02:45.6]}
11... Nh5 {[%clk 0:02:48.5]} 12. Ng5 {[%clk 0:02:42.2]} 12... Bxg5 {[%clk
0:02:46.5]} 13. Qxh5 {[%clk 0:02:41.6]} 13... g6 {[%clk 0:02:40.2]} 14. Qe2
{[%clk 0:02:41]} 14... cxd4 {[%clk 0:02:31.8]} 15. h4 {[%clk 0:02:40.8]} 15...
Bh6 {[%clk 0:02:26.2]} 16. h5 {[%clk 0:02:40.5]} 16... g5 {[%clk 0:02:25.3]} 17.
Rd1 {[%clk 0:02:20.9]} 17... dxc3 {[%clk 0:02:23.8]} 18. bxc3 {[%clk 0:02:21.8]}
18... f5 {[%clk 0:02:17.3]} 19. exf6 {[%clk 0:02:17.1]} 19... Qxf6 {[%clk
0:02:17.4]} 20. O-O {[%clk 0:02:01.5]} 20... Rae8 {[%clk 0:02:15.4]} 21. Nf3
{[%clk 0:01:43]} 21... e5 {[%clk 0:02:09.7]} 22. Nh2 {[%clk 0:01:42.4]} 22...
Bg7 {[%clk 0:02:01.7]} 23. Ng4 {[%clk 0:01:39.6]} 23... Qe6 {[%clk 0:01:59.8]}
24. Bc2 {[%clk 0:01:24.9]} 24... Na5 {[%clk 0:01:48.1]} 25. h6 {[%clk
0:01:22.3]} 25... Bh8 {[%clk 0:01:44.3]} 26. f3 {[%clk 0:00:57.6]} 26... Nc4
{[%clk 0:01:43.9]} 27. Rfe1 {[%clk 0:00:43.3]} 27... b5 {[%clk 0:01:30.5]} 28.
Bd3 {[%clk 0:00:40.3]} 28... e4 {[%clk 0:01:21.3]} 29. Bxc4 {[%clk 0:00:40.1]}
29... bxc4 {[%clk 0:01:20.6]} 30. fxe4 {[%clk 0:00:39.4]} 30... Bxc3 {[%clk
0:01:14.9]} 31. Qe3 {[%clk 0:00:31.1]} 31... Bxe1 {[%clk 0:00:54]} 32. Qxg5+
{[%clk 0:00:30.3]} 32... Qg6 {[%clk 0:00:53.9]} 33. Qxg6+ {[%clk 0:00:27.9]}
33... hxg6 {[%clk 0:00:54.8]} 34. Rxe1 {[%clk 0:00:24.9]} 34... Rxe4 {[%clk
0:00:50.9]} 35. Rxe4 {[%clk 0:00:24.9]} 35... dxe4 {[%clk 0:00:51.8]} 36. Be5
{[%clk 0:00:24.9]} 36... Kh7 {[%clk 0:00:23.7]} 37. Bg7 {[%clk 0:00:21.6]} 37...
Rf7 {[%clk 0:00:22.7]} 38. Nf6+ {[%clk 0:00:21.4]} 38... Rxf6 {[%clk 0:00:23]}
39. Bxf6 {[%clk 0:00:21.8]} 39... Kxh6 {[%clk 0:00:21.3]} 40. Bd4 {[%clk
0:00:20.5]} 40... a6 {[%clk 0:00:20.4]} 41. Kf2 {[%clk 0:00:21]} 41... Kg5
{[%clk 0:00:20.9]} 42. Ke3 {[%clk 0:00:20.9]} 42... Kg4 {[%clk 0:00:21.4]} 43.
Kf2 {[%clk 0:00:18.4]} 43... Kf4 {[%clk 0:00:20.5]} 44. g3+ {[%clk 0:00:14.9]}
44... Kg4 {[%clk 0:00:20.4]} 45. a3 {[%clk 0:00:14.6]} 45... Bc6 {[%clk
0:00:20]} 46. Be5 {[%clk 0:00:14.5]} 46... Ba4 {[%clk 0:00:19.6]} 47. Bd4 {[%clk
0:00:14.3]} 47... Bc2 {[%clk 0:00:20.1]} 48. Be5 {[%clk 0:00:14.4]} 48... Bd3
{[%clk 0:00:20.5]} 49. Bd4 {[%clk 0:00:14.6]} 49... Bb1 {[%clk 0:00:20.3]} 50.
Be5 {[%clk 0:00:14.8]} 50... Bc2 {[%clk 0:00:20.8]} 51. Bd4 {[%clk 0:00:15.1]}
51... Bd3 {[%clk 0:00:21.4]} 52. Be5 {[%clk 0:00:15.5]} 52... Kf5 {[%clk
0:00:21.4]} 53. Bd4 {[%clk 0:00:15.5]} 53... Ke6 {[%clk 0:00:21.9]} 54. Ke3
{[%clk 0:00:15.6]} 54... Kd5 {[%clk 0:00:22.8]} 55. Bc3 {[%clk 0:00:16]} 55...
Kc6 {[%clk 0:00:23.3]} 56. Kd2 {[%clk 0:00:15.2]} 56... Kb5 {[%clk 0:00:23.8]}
57. Be5 {[%clk 0:00:01.3]} 57... Ka4 {[%clk 0:00:23.9]} 58. Bd6 {[%clk
0:00:01.9]} 58... Kb3 {[%clk 0:00:23.9]} 59. Bc5 {[%clk 0:00:01.7]} 59... c3+
{[%clk 0:00:23.8]} 60. Ke3 {[%clk 0:00:02.2]} 60... c2 {[%clk 0:00:22.6]} 0-1

[Event "*** SCC Grand Prix: Titled Tuesday Blitz"]
[Site "Chess.com"]
[Date "2020.07.14"]
[Round "8"]
[White "sergeikim"]
[Black "dosto07"]
[Result "0-1"]
[WhiteElo "2360"]
[BlackElo "2238"]
[TimeControl "180+1"]
[EndTime "11:37:10 PDT"]
[Termination "dosto07 won on time"]

1. d4 {[%clk 0:03:00.9]} 1... d5 {[%clk 0:02:58.6]} 2. c4 {[%clk 0:03:00.8]}
2... dxc4 {[%clk 0:02:58.4]} 3. e3 {[%clk 0:03:00]} 3... Nf6 {[%clk 0:02:58]} 4.
Bxc4 {[%clk 0:02:59.6]} 4... e6 {[%clk 0:02:58.5]} 5. Nf3 {[%clk 0:02:59.5]}
5... c5 {[%clk 0:02:58.8]} 6. O-O {[%clk 0:02:59.2]} 6... Nc6 {[%clk 0:02:57.4]}
7. Qe2 {[%clk 0:02:58.9]} 7... Be7 {[%clk 0:02:56.2]} 8. Rd1 {[%clk 0:02:58.7]}
8... O-O {[%clk 0:02:52]} 9. Nc3 {[%clk 0:02:54.1]} 9... Qc7 {[%clk 0:02:42.9]}
10. a3 {[%clk 0:02:45.7]} 10... a6 {[%clk 0:02:42.7]} 11. Ba2 {[%clk 0:02:43.5]}
11... b5 {[%clk 0:02:38.4]} 12. h3 {[%clk 0:02:40.9]} 12... Bb7 {[%clk
0:02:37.5]} 13. dxc5 {[%clk 0:02:29.1]} 13... Bxc5 {[%clk 0:02:36.8]} 14. e4
{[%clk 0:02:29.2]} 14... Rfd8 {[%clk 0:02:01.8]} 15. Bg5 {[%clk 0:02:28]} 15...
Ne5 {[%clk 0:01:56.3]} 16. Rac1 {[%clk 0:02:04.4]} 16... Rxd1+ {[%clk 0:01:44]}
17. Rxd1 {[%clk 0:02:03.5]} 17... Nxf3+ {[%clk 0:01:37.2]} 18. Qxf3 {[%clk
0:02:02.3]} 18... Qe5 {[%clk 0:01:32.9]} 19. Bxf6 {[%clk 0:01:47.8]} 19... gxf6
{[%clk 0:01:25.5]} 20. Rd7 {[%clk 0:01:21.3]} 20... Bc6 {[%clk 0:01:20.2]} 21.
Qg4+ {[%clk 0:01:07.3]} 21... Kf8 {[%clk 0:01:13.2]} 22. Rd1 {[%clk 0:00:53.3]}
22... Ke7 {[%clk 0:01:02.3]} 23. Qf3 {[%clk 0:00:28.4]} 23... Rg8 {[%clk
0:00:56.4]} 24. Bb1 {[%clk 0:00:27.5]} 24... Bd6 {[%clk 0:00:52.5]} 25. g3
{[%clk 0:00:24.8]} 25... Qf4 {[%clk 0:00:43.9]} 26. Qxf4 {[%clk 0:00:22.7]}
26... Bxf4 {[%clk 0:00:43.5]} 27. Kf1 {[%clk 0:00:22.7]} 27... Be5 {[%clk
0:00:42.8]} 28. Ke2 {[%clk 0:00:20.4]} 28... Rc8 {[%clk 0:00:39.9]} 29. Rd3
{[%clk 0:00:17.2]} 29... a5 {[%clk 0:00:39.2]} 30. f4 {[%clk 0:00:13.1]} 30...
Bb8 {[%clk 0:00:38.3]} 31. Re3 {[%clk 0:00:11.8]} 31... Ba7 {[%clk 0:00:36.8]}
32. Rf3 {[%clk 0:00:11.6]} 32... b4 {[%clk 0:00:35.5]} 33. axb4 {[%clk
0:00:11.1]} 33... axb4 {[%clk 0:00:35.6]} 34. Na2 {[%clk 0:00:11.6]} 34... Bb5+
{[%clk 0:00:34.9]} 35. Kd1 {[%clk 0:00:11.6]} 35... Bc5 {[%clk 0:00:30.9]} 36.
b3 {[%clk 0:00:11.1]} 36... Rd8+ {[%clk 0:00:28.9]} 37. Kc1 {[%clk 0:00:09.7]}
37... Rd4 {[%clk 0:00:27.8]} 38. Kb2 {[%clk 0:00:08.8]} 38... Bc6 {[%clk
0:00:27.8]} 39. Nc1 {[%clk 0:00:06.8]} 39... Bxe4 {[%clk 0:00:25.8]} 40. Bxe4
{[%clk 0:00:06.5]} 40... Rxe4 {[%clk 0:00:26]} 41. Kc2 {[%clk 0:00:05.8]} 41...
f5 {[%clk 0:00:25.3]} 42. g4 {[%clk 0:00:04.8]} 42... Kf6 {[%clk 0:00:24.5]} 43.
g5+ {[%clk 0:00:04.4]} 43... Kg6 {[%clk 0:00:23]} 44. Nd3 {[%clk 0:00:05.3]}
44... Bd6 {[%clk 0:00:21.7]} 45. Kd2 {[%clk 0:00:04.7]} 45... f6 {[%clk
0:00:19.8]} 46. h4 {[%clk 0:00:04]} 46... fxg5 {[%clk 0:00:18.4]} 47. hxg5
{[%clk 0:00:03.8]} 47... e5 {[%clk 0:00:11.4]} 48. fxe5 {[%clk 0:00:03.4]} 48...
Bxe5 {[%clk 0:00:11.3]} 49. Rh3 {[%clk 0:00:02.9]} 49... Bc3+ {[%clk 0:00:10.7]}
50. Kc2 {[%clk 0:00:03]} 50... f4 {[%clk 0:00:10.4]} 51. Nc5 {[%clk 0:00:02.1]}
51... Re2+ {[%clk 0:00:09.7]} 52. Kd3 {[%clk 0:00:02.1]} 52... Re1 {[%clk
0:00:07.4]} 0-1